Cogmind - Beta 9.6 @@@ ROGUE MODE // 2020.05.17 @ 00:25:22 Player: Pitt Result: Destroyed by EX-DEC with AWS/EX-DEC Performance ------------- Evolutions (0) 0 Regions Visited (3) 600 Robots Destroyed (15) 75 Value Destroyed (70) 70 Prototype IDs (0) 0 Alien Tech Used (0) 0 Bonus (-32) -32 TOTAL SCORE: 713 Bonus ------- Friendly Fire -32 Cogmind --------- Core Integrity 0/250 Matter 11/300 Energy 88/100 System Corruption 6% Temperature Cool (0) Movement Core (50) Location -10/Exiles Parts ------- > --- POWER (1) -------- (None) > --- PROPULSION (2) --- (None) > --- UTILITY (2) ------ (None) > --- WEAPON (2) ------- (None) > --- INVENTORY (4) ---- Aluminum Leg Small Storage Unit High-capacity Storage Unit Peak State ------------ > --- POWER ------------ Ion Engine > --- PROPULSION ------- Aluminum Leg Makeshift Leg > --- UTILITY ---------- Improved Terrain Scanner Seismic Analyzer > --- WEAPON ----------- Assault Rifle Assault Rifle > --- INVENTORY -------- Aluminum Leg Small Storage Unit High-capacity Storage Unit Grenade Launcher [Rating: 11] Favorites ----------- Power Ion Engine Engine Ion Engine Propulsion Aluminum Leg Leg Aluminum Leg Utility Improved Terrain Scanner Device Improved Terrain Scanner Processor Seismic Analyzer Weapon Assault Rifle Ballistic Gun Assault Rifle Launcher Grenade Launcher Special Weapon Mining Laser Build | -11 -10 -10 -10 ------- Run | Scr Mat Min Exi Slots Evolved . | . . . . Power . | . . . . Propulsion . | . . . . Utility . | . . . . Weapon . | . . . . Parts Attached 11 | 7 1 . 3 Power 1 | 1 . . . Engine 1 | 1 . . . Core . | . . . . Reactor . | . . . . Propulsion 3 | 2 . . 1 Treads . | . . . . Leg 3 | 2 . . 1 Wheel . | . . . . Hover . | . . . . Flight . | . . . . Utility 2 | 2 . . . Device 1 | 1 . . . Storage . | . . . . Processor 1 | 1 . . . Hackware . | . . . . Protection . | . . . . Artifact . | . . . . Weapon 5 | 2 1 . 2 Energy Gun . | . . . . Energy Cannon . | . . . . Ballistic Gun 3 | 2 . . 1 Ballistic Cannon . | . . . . Launcher 1 | . . . 1 Special Weapon 1 | . 1 . . Impact Weapon . | . . . . Slashing Weapon . | . . . . Piercing Weapon . | . . . . Special Melee Weapon . | . . . . Unidentified Prototypes . | . . . . Parts Lost 9 | . . 1 8 Power 1 | . . . 1 Propulsion 2 | . . . 2 Utility 2 | . . . 2 Weapon 4 | . . 1 3 Highest Loss Streak 8 | . . 1 8 Average Slot Usage (%) 89 | . 100 85 87 Engine 13 | . 14 14 13 Leg 27 | . 28 28 27 Device 13 | . 14 14 13 Processor 13 | . 14 14 13 Ballistic Gun 16 | . 15 14 16 Special Weapon 2 | . 12 . . Naked Turns 1 | . . . 1 Heaviest Build 10 | 10 10 9 10 Greatest Support 30 | 20 20 20 30 Greatest Overweight (x) . | . . . . Average Overweight (x) . | . . . . Largest Inventory Capacity 4 | 4 4 4 4 Average Capacity 4 | 4 4 4 4 Most Carried 4 | 2 3 3 4 Average Carried 3 | 1 2 3 3 Final Capacity 4 | 4 4 4 4 Final Carried 3 | 2 3 3 3 Class Distribution -------------------- 100% | Mutant Dominant Class ---------------- Mutant | -10/Materials Mutant | -10/Mines Mutant | -10/Exiles Resources | -11 -10 -10 -10 ----------- Run | Scr Mat Min Exi Matter Collected 123 | 50 . 46 27 Remotely . | . . . . Salvage Created 250 | 114 . 46 90 Parts 19 | 8 . 4 7 Haulers Intercepted . | . . . . Recyclers Shooed 1 | 1 . . . Parts Field Recycled . | . . . . Retrieved Matter . | . . . . Parts Self-Destructed . | . . . . Prevented . | . . . . Kills | -11 -10 -10 -10 ------- Run | Scr Mat Min Exi Combat Hostiles Destroyed 9 | . . 3 6 Guns 3 | . . 3 . AOE 6 | . . . 6 Classes Destroyed 5 | 2 . 1 2 Tunneler 2 | 2 . . . Recycler 1 | 1 . . . Swarmer 3 | . . 3 . Zionite 3 | . . . 3 Assembled 6 | . . . 6 Best Kill Streak 8 | 2 . 3 8 Combat Bots Only 6 | . . 3 6 Max Kills in Single Turn 3 | 1 . 1 3 Gunslinging . | . . . . Exploded 3 | . . . 3 Melee . | . . . . Uniques/NPCs Destroyed . | . . . . Combat | -11 -10 -10 -10 -------- Run | Scr Mat Min Exi Damage Taken 866 | . 76 101 689 Core 256 | . 16 8 232 Absorbed by Shields . | . . . . Core Remaining (%) 100 | 100 . . . Volleys Fired 36 | 11 9 7 9 Largest 2 | 2 1 1 2 Hottest 100 | 40 100 20 40 Shots Fired 53 | 22 9 7 15 Gun 41 | 22 . 7 12 Cannon . | . . . . Launcher 3 | . . . 3 Special 9 | . 9 . . Kinetic 41 | 22 . 7 12 Thermal 9 | . 9 . . Explosive 3 | . . . 3 Electromagnetic . | . . . . Robot Hit Streak 7 | 2 . 6 7 Robot Miss Streak 5 | 5 . 1 5 Penetration Max . | . . . . Secondary Targets . | . . . . Shots Hit Robots 20 | 8 . 6 6 Core Hits 25 | 3 . 3 19 Critical Hits . | . . . . Critical Kills . | . . . . Critical Parts Destroyed . | . . . . Melee Attacks . | . . . . Impact . | . . . . Slashing . | . . . . Piercing . | . . . . Sneak Attacks . | . . . . Combat Hostiles . | . . . . Follow-up Attacks . | . . . . Damage Inflicted 636 | 134 . 70 432 Guns 256 | 134 . 70 52 Cannons . | . . . . Explosions 372 | . . . 372 Melee . | . . . . Ramming 8 | . . . 8 Kinetic 256 | 134 . 70 52 Thermal . | . . . . Explosive 372 | . . . 372 Electromagnetic . | . . . . Impact . | . . . . Slashing . | . . . . Piercing . | . . . . Highest Corruption 6 | . . . 6 Average Corruption 5 | . . . 5 Corruption Purged . | . . . . Effects 1 | . . . 1 Energy Discharges 1 | . . . 1 Overload Shots . | . . . . Overflow Damage 5 | . . . 5 Projectiles . | . . . . Explosions 5 | . . . 5 Melee . | . . . . Knockbacks . | . . . . Impact . | . . . . Kinetic . | . . . . Secondary . | . . . . Self-Inflicted Damage 74 | . . . 74 Shots 2 | . . . 2 Rammed 1 | . . . 1 Targets Rammed 2 | . . . 2 Kicked 1 | . . . 1 Crushed . | . . . . Highest Temperature 68 | . 68 . 16 Average Temperature 19 | . 21 . 5 Received Heat Transfer 146 | . 6 . 140 Siege Activations . | . . . . Robots Corrupted . | . . . . Combat Hostiles . | . . . . Parts Fried . | . . . . Impact Corruptions . | . . . . Robots Melted . | . . . . Combat Hostiles . | . . . . Parts Melted . | . . . . Heat Transferred . | . . . . Parts Sabotaged . | . . . . Parts Stolen . | . . . . Parts Stripped . | . . . . Power Chain Reactions . | . . . . Missiles Intercepted . | . . . . Alert | -11 -10 -10 -10 ------- Run | Scr Mat Min Exi Peak Influence 78 | 15 9 78 . Average Influence 13 | 5 9 65 . Maximum Alert Level . | . . . . Low Security (%) 100 | 100 100 100 . Level 1 . | . . . . Level 2 . | . . . . Level 3 . | . . . . Level 4 . | . . . . Level 5 . | . . . . High Security . | . . . . Max Security . | . . . . Squads Dispatched . | . . . . Investigation . | . . . . Extermination . | . . . . Reinforcement . | . . . . Assault . | . . . . Garrison . | . . . . Intercept . | . . . . Construction Impeded . | . . . . Haulers Reinforced . | . . . . Stealth | -11 -10 -10 -10 --------- Run | Scr Mat Min Exi Distress Signals . | . . . . Communications Jammed . | . . . . Distress Signals . | . . . . Times Spotted 20 | . 5 3 12 Peak Tracking Total 15 | . 5 3 15 Tactical Retreats 1 | . . . 1 Traps | -11 -10 -10 -10 ------- Run | Scr Mat Min Exi Traps Triggered . | . . . . Indirectly . | . . . . Trap Hack Attempts . | . . . . Triggered . | . . . . Disarmed . | . . . . Reprogrammed . | . . . . Reused . | . . . . Traps Extracted . | . . . . Installed . | . . . . Triggered . | . . . . Machines | -11 -10 -10 -10 ---------- Run | Scr Mat Min Exi Machines Disabled 3 | . . . 3 Max in Single Turn 1 | . . . 1 Machines Sabotaged . | . . . . Garrisons Compromised . | . . . . Overloaded Fab Kills . | . . . . Fab Network Shutdowns . | . . . . Hacking | -11 -10 -10 -10 --------- Run | Scr Mat Min Exi Machines Accessed 2 | . . . 2 Terminals . | . . . . Fabricators . | . . . . Repair Stations . | . . . . Recycling Units . | . . . . Scanalyzers . | . . . . Garrison Access . | . . . . Total Hacks 7 | . . . 7 Successful 7 | . . . 7 Failed . | . . . . Catastrophic . | . . . . Database Lockouts . | . . . . Manual . | . . . . Terminals . | . . . . Fabricators . | . . . . Repair Stations . | . . . . Recycling Units . | . . . . Scanalyzers . | . . . . Garrison Access . | . . . . Terminal Hacks 7 | . . . 7 Record 7 | . . . 7 Fabricator Hacks . | . . . . Repair Station Hacks . | . . . . Recycling Unit Hacks . | . . . . Scanalyzer . | . . . . Garrison Access Hacks . | . . . . Unauthorized Hacks . | . . . . Terminals . | . . . . Fabricators . | . . . . Repair Stations . | . . . . Recycling Units . | . . . . Scanalyzers . | . . . . Garrison Access . | . . . . Data Cores Recovered . | . . . . Used . | . . . . Hacking Detections . | . . . . Full Trace Events . | . . . . Feedback Events . | . . . . Feedback Blocked . | . . . . Robot Schematics Acquired . | . . . . Robots Built . | . . . . Matter . | . . . . Time . | . . . . Total Robot Build Rating . | . . . . Part Schematics Acquired . | . . . . Parts Built . | . . . . Matter . | . . . . Time . | . . . . Total Part Build Rating . | . . . . Parts Repaired . | . . . . Time . | . . . . Parts Recycled . | . . . . Recycled Matter . | . . . . Retrieved Matter . | . . . . Retrieved Components . | . . . . Parts Scanalyzed . | . . . . Part Schematics Acquired . | . . . . Parts Damaged . | . . . . Bothacking | -11 -10 -10 -10 ------------ Run | Scr Mat Min Exi Used RIF Installer . | . . . . Robots Hacked . | . . . . Non-combat . | . . . . Combat . | . . . . Robot Hacks Applied . | . . . . Relay Couplers Released . | . . . . Robots Rewired . | . . . . Allies Hacked . | . . . . Hacks Repelled . | . . . . Allies | -11 -10 -10 -10 -------- Run | Scr Mat Min Exi Total Allies . | . . . . Largest Group . | . . . . Highest-Rated Group . | . . . . Highest-Rated Ally . | . . . . Total Orders . | . . . . Ally Attacks . | . . . . Total Damage . | . . . . Kills . | . . . . Allies Corrupted . | . . . . Allies Melted . | . . . . Intel | -11 -10 -10 -10 ------- Run | Scr Mat Min Exi Robot Analysis Total . | . . . . Derelict Logs Recovered . | . . . . Drone Launches . | . . . . Drone Recoveries . | . . . . Exploration | -11 -10 -10 -10 ------------- Run | Scr Mat Min Exi Turns Passed 1849 | 123 370 50 1306 Spaces Moved 1129 | 68 107 31 923 Core 8 | 5 . . 3 Treads . | . . . . Legs 1121 | 63 107 31 920 Wheels . | . . . . Hover . | . . . . Flight . | . . . . Fastest Speed 50 | 50 120 120 50 Average Speed 119 | 114 120 120 119 Slowest Speed 130 | 120 120 120 130 Overloaded Moves . | . . . . Propulsion Burnouts . | . . . . Robots Hopped . | . . . . Cave-ins Triggered . | . . . . Exploration Rate (%) 31 | 4 25 6 92 Regions Visited 3 Branch Regions 2 Pre-discovered Areas 1 | . . . 1 Known Exits Taken . | . . . . Unknown Exits Taken 3 | 1 1 1 . Scrap Searched . | . . . . Spaces Dug 9 | . 9 . . Terrain Destroyed 15 | . 9 . 6 Melee . | . . . . Projectile 9 | . 9 . . AOE 6 | . . . 6 Actions | -11 -10 -10 -10 --------- Run | Scr Mat Min Exi Total 1550 | 87 321 37 1105 Wait 371 | . 204 . 167 Move 1126 | 67 106 30 923 Hop . | . . . . Pick Up 4 | 2 1 . 1 Fast Attach 7 | 7 . . . Attach 2 | . . . 2 Detach . | . . . . Swap 2 | . 1 . 1 Drop . | . . . . Fire 36 | 11 9 7 9 Melee . | . . . . Ram . | . . . . Kick 2 | . . . 2 Crush . | . . . . Escape Stasis . | . . . . Rewire . | . . . . Trap . | . . . . Miscellaneous . | . . . . Route ------- -11/Scrapyard -10/Materials -10/Mines -10/Exiles (discovered 1 exit: [*Min]) History --------- Turn | Location | Event 23 | -11/Scrapyard | Discovered new exit (range 16) 124 | -11/Scrapyard | Entered Materials 302 | -10/Materials | Build established: Mutant 488 | -10/Materials | Discovered new exit (range 6) 494 | -10/Materials | Entered Mines 540 | -10/Mines | Deemed a non-threat by the Exiles lab entrance 540 | -10/Mines | Discovered new exit (range 5) 544 | -10/Mines | Entered Exiles 582 | -10/Exiles | Met 8R-AWN 600 | -10/Exiles | Met EX-HEX 647 | -10/Exiles | Met EX-DEC 677 | -10/Exiles | Learned location of Zion (-6) 769 | -10/Exiles | Discovered new exit (range 14) 847 | -10/Exiles | Met EX-BIN 1178 | -10/Exiles | Visited The Gauntlet 1798 | -10/Exiles | Attacked by the Exiles 1844 | -10/Exiles | Core integrity fell below 50% 1848 | -10/Exiles | Core integrity fell below 20% 1850 | -10/Exiles | Destroyed by EX-DEC with AWS/EX-DEC Last Messages --------------- 01840_ Kicked as-82996 out of the way. 01840_ Seismic Analyzer destroyed. 01840_ System corrupted by crushing effect (+2). 01840_ Aluminum Leg destroyed. 01840_ Assault Rifle destroyed. 01841_ Mak. Leg destroyed. 01842_ as-66065 destroyed. 01842_ as-74373 destroyed. 01842_ as-18034 destroyed. 01843_ as-82996 destroyed. 01844_ as-31108 destroyed. 01844_ Destroyed Asb. Hover Unit. 01844_ as-48498 destroyed. 01844_ as-15044 destroyed. 01846_ System corrupted: Energy discharge (-29). 01846_ Acquired 7 matter. 01847_ EX-BIN: "I just want to science!" 01847_ Machine disabled. 01849_ Grenade Launcher destroyed. 01849_ Acquired 4 matter. Map ----- +----------------------------------------------------+ | ????????????????????????#?#" " | | ?????????????????????#????#"""" ""## | | ??????????????????????????#"" ""#### | | ??????????????????????#?###" """"##?## | | ????????????????????????#?#""" """##### | | ??????????????????#???##??## ""###?#! | | ?????????????????????????###"" """###?##" | | ??????????????????????#????##""" ##??###" | | ????????#????????????????#??##"""" ###?#?##! | | ???####?###?#?????????#?##??#### ##?###?## | | ?##########?#?####?????#??#???###### ###?????## | | ?########?#???#####?#?#?##?#?####?### ##?####??# | | ???#######?###?#######?#?##?#?##??### ###???##?? | | ?#?##?#####??#######?##?#?##??#??#??# #????##??# | | ##?#####?############?#?#??###?#??### ##??##??## | | ###############?##############?###### ####????#? | | ##?#"""""""###?"""""""###?"""""""#### #?????#?#? | | ##?#"" ""##?#"""""""####"""""""#?## ###?#??### | | ####" "#"""""""" "####" """"#?## ##?#???##? | | ####"" ""#""#""" """####"" """#?## #?###?##?# | | ??##"" ""#""#"" ""##?#"" ""#?## ##?###?### | | ######"""###""###"""########"""###### #########? | | """ "" """"""" """""""" """""" """""""#?" | | """""" "" c c "#"" | | "" = " | | """ @* c %= " | | " ! " | | "" = % #"" | | " """ ="""""" " " "" """""#"" | | ######"""########"""# """### ####"""######?# | | ####"" ""###?"" " # #"" ""????"" ""#???#? | | ##?#""" """####""" ""# #""" ""####"" """#?#??? | | #?##" """ "##?#" """"""""#" " "##?#"""""""#?#??? | | ####"""""""####"""""""#""#"""""""##?#"" """"##???? | | ?#?#"""""""####"""""""#""#"""""""#???"""""""?????? | | #?#########?###?##"##?#""#?######?##??#####????#?? | | ###?#######""" """""?"?""?#?###??#?#?##????????#?? | | ##?#######??"? ?"""????"?###?####?#??#???#???????? | | ?#####?###?""" ##?##????##????#???#?#?#??????#???? | | ??##?##########?##??#??#??#?#???#???#?????#??????? | | | | | | | | | | | | | | | | | | | | | +----------------------------------------------------+ Best States ------------- Heat Dissipation 25 Energy Generation 10 Energy Capacity 250 Matter Stores 80 Matter Capacity 300 Sight Range 16 Terrain Scan Range 16 Terrain Scan Density 60 Evasion (%) 50 Item Schematics ----------------- None Robot Schematics ------------------ None Fabricated ------------ Nothing Alien Tech Used ----------------- None Achievements -------------- None Challenges ------------ None Game ------ Seed HypercooledMicroSuite Manual? 0 Play Time 00:16:54 Cumulative 61.0 hours Start 2020.05.16 @ 23:42:22 End 2020.05.17 @ 00:25:22 Sessions 1 Manual Loads 0 Difficulty Rogue Special Mode None Game No. 107 Rogue 107 Adventurer 0 Explorer 0 Win Type - Total 0 Types 0/0/0/0/0/0/0 Lore% 40 Gallery% 48 Achievement% 31 Wizard Run 0 Options --------- ASCII 0 Keyboard 0 Movement Mouse Keybinds 0 Fullscreen 1 Font 12/Smallcaps Map View 83x54 Tactical HUD 1 Map Filters NONE Filters NONE Steam 1 RUN: 9f730aca-fbaa-4246-99b2-b1d1973d11d0